bitfinex-derivatives/quotes_SOLF0:USTF0_20250606
["timestamp","ask_amount","ask_price","bid_price","bid_amount"]
[1749233412872,4.67843354,149.86,149.85,6.668]
[1749233413072,4.67843354,149.86,149.84,10.04467392]
[1749233413477,4.63462145,149.85,149.84,10.04467392]
[1749233413972,6.668,149.85,149.84,10.04467392]
[1749233414165,4.63462145,149.85,149.78,2.1412]
[1749233414365,4.63462145,149.79,149.75,2.218]
[1749233414581,4.63462145,149.76,149.75,2.218]
[1749233414966,4.63462145,149.77,149.75,2.218]
[1749233415168,0.04217152,149.77,149.76,6.6717]
[1749233415368,33.84,149.78,149.76,6.6717]
[1749233415978,33.84,149.78,149.76,16.6717]
[1749233416169,33.84,149.78,149.76,10.0]
[1749233416371,33.88766777,149.78,149.76,10.0]
[1749233417071,0.04766777,149.78,149.76,10.0]
[1749233417280,41.0902495,149.81,149.76,10.0]
[1749233417672,7.2502495,149.79,149.77,6.6713]
[1749233418083,7.2502495,149.79,149.76,10.0]
[1749233418275,13.9218495,149.77,149.76,10.04410079]
[1749233418478,47.7618495,149.77,149.76,10.04410079]
[1749233418876,47.7618495,149.77,149.76,0.04410079]
[1749233419076,47.7618495,149.77,149.7,3.38909177]
[1749233419077,41.0902495,149.77,149.7,2.227]
[1749233419277,7.2502495,149.71,149.7,2.227]
[1749233419481,13.9245495,149.71,149.7,2.227]
[1749233420181,7.2502495,149.71,149.69,0.04985153]
[1749233420591,33.88577059,149.72,149.69,0.04985153]
[1749233420879,33.88577059,149.72,149.69,10.04985153]
[1749233421085,33.88577059,149.72,149.69,17.30010103]
[1749233421273,33.88577059,149.72,149.71,6.6743]
[1749233422080,0.04577059,149.72,149.71,6.6743]
[1749233422283,33.82,149.75,149.73,6.6733]
[1749233423286,33.86457036,149.75,149.73,6.71636228]
[1749233423590,33.86457036,149.75,149.73,0.04306228]
[1749233424383,40.53717036,149.75,149.73,0.04306228]
[1749233424679,7.2502495,149.74,149.73,0.04306228]
[1749233425391,13.9231495,149.74,149.73,0.04306228]
[1749233425791,7.2502495,149.74,149.69,10.0]
[1749233426083,13.9249495,149.7,149.69,10.0]
[1749233426290,47.7649495,149.7,149.69,10.0]
[1749233427190,47.7649495,149.7,149.69,7.28513853]
[1749233429987,6.6752,149.69,149.68,0.04976592]
[1749233430192,7.2502495,149.66,149.62,6.6781]
[1749233430490,41.0902495,149.66,149.62,6.6781]
[1749233430693,47.7669495,149.66,149.62,6.6781]
[1749233431093,0.04514796,149.65,149.63,0.05057539]
[1749233432494,0.04514796,149.65,149.63,6.72837539]
[1749233432695,6.72214796,149.65,149.63,0.05057539]
[1749233433283,0.04514796,149.65,149.63,0.05057539]
[1749233433487,384.44,149.72,149.63,0.05057539]
[1749233433488,7.2502495,149.71,149.63,7.30082489]
[1749233433683,33.84,149.7,149.64,2.1705]
[1749233433890,6.6754,149.69,149.66,6.6762]
[1749233434194,7.2502495,149.67,149.61,33.84]
[1749233434584,0.04996234,149.65,149.63,0.04934199]
[1749233434788,7.30021184,149.65,149.63,0.04934199]
[1749233434989,6.6774,149.64,149.63,0.04934199]
[1749233436097,6.6774,149.64,149.63,10.04934199]
[1749233439996,13.97741184,149.65,149.63,10.04934199]
[1749233440295,7.30021184,149.65,149.63,10.04934199]
[1749233440693,6.6774,149.64,149.63,10.04934199]
[1749233441392,13.97741184,149.65,149.63,10.04934199]
[1749233441593,7.30021184,149.65,149.63,10.04934199]
[1749233441789,0.04996234,149.65,149.63,10.04934199]
[1749233441990,0.04996234,149.65,149.63,16.72704199]
[1749233442189,0.04996234,149.65,149.63,10.04934199]
[1749233443197,6.72716234,149.65,149.63,10.04934199]
[1749233443498,0.04996234,149.65,149.63,10.04934199]
[1749233444101,6.6774,149.64,149.63,10.04934199]
[1749233445399,13.9276495,149.64,149.63,10.04934199]
[1749233446095,6.72716234,149.65,149.63,10.04934199]
[1749233446995,0.04996234,149.65,149.63,10.04934199]
[1749233447699,33.86,149.68,149.67,6.676]
[1749233447893,33.86,149.69,149.65,7.2502495]
[1749233448487,33.86,149.69,149.68,6.6756]
[1749233448996,0.04822996,149.7,149.69,6.6752]
[1749233452599,0.04822996,149.7,149.68,6.6754]
[1749233452805,0.04822996,149.7,149.67,7.2502495]
[1749233453306,0.04822996,149.7,149.68,6.6756]
[1749233453696,0.04822996,149.7,149.69,6.6752]
[1749233460105,0.04822996,149.7,149.68,8.8155]
[1749233460303,0.04822996,149.7,149.68,2.14]
[1749233460499,0.04822996,149.7,149.69,6.6752]
[1749233462011,33.86,149.72,149.68,2.14]
[1749233462207,33.86,149.72,149.69,17.2502495]
[1749233462403,33.86,149.72,149.71,6.6743]
[1749233463116,0.0463111,149.73,149.72,6.6739]
[1749233463310,0.0463111,149.73,149.7,0.04363678]
[1749233463614,0.0463111,149.73,149.71,6.6741]
[1749233464009,0.0463111,149.73,149.7,6.71823678]
[1749233464208,7.2502495,149.72,149.7,0.04363678]
[1749233464618,40.5143,149.71,149.7,0.04363678]
[1749233465413,33.84,149.71,149.7,0.04363678]
[1749233466107,40.5143,149.71,149.7,0.04363678]
[1749233467809,33.84,149.71,149.7,0.04363678]
[1749233468410,40.5143,149.71,149.7,0.04363678]
[1749233471511,33.84,149.71,149.7,0.04363678]
[1749233472413,40.5143,149.71,149.7,0.04363678]
[1749233473417,33.84,149.71,149.7,0.04363678]
[1749233475516,33.84,149.71,149.7,16.71843678]
[1749233477310,0.0463111,149.73,149.71,6.6743]
[1749233477521,33.84,149.72,149.71,6.6743]
[1749233477720,33.84,149.72,149.7,10.04363678]
[1749233477920,33.84,149.72,149.71,6.6743]
[1749233478315,0.0463111,149.73,149.7,10.04363678]
[1749233478618,0.0463111,149.73,149.72,6.6739]
[1749233483017,384.66,149.79,149.71,9.5603495]
[1749233483223,33.82,149.78,149.73,7.2502495]
[1749233483420,33.82,149.78,149.72,7.2502495]
[1749233483623,41.0702495,149.78,149.72,7.2502495]
[1749233483925,41.0702495,149.78,149.72,13.9238495]
[1749233484128,41.0702495,149.78,149.74,0.04775775]
[1749233484525,6.6729,149.75,149.74,0.04775775]
[1749233487629,13.9225495,149.76,149.74,0.04775775]
[1749233487829,7.2502495,149.76,149.74,0.04775775]
[1749233488035,41.0702495,149.78,149.74,0.04775775]
[1749233488232,6.6721,149.77,149.74,0.04775775]
[1749233488435,41.0702495,149.78,149.74,0.04775775]
[1749233489135,7.2502495,149.76,149.74,0.04775775]
[1749233489528,6.6726,149.75,149.74,0.04775775]
[1749233490334,7.2502495,149.76,149.74,0.04775775]
[1749233491740,13.9226495,149.76,149.74,0.04775775]
[1749233491936,7.2502495,149.76,149.74,0.04775775]
[1749233492240,7.2502495,149.76,149.74,10.04775775]
[1749233492641,7.2502495,149.76,149.67,6.19855425]
[1749233492840,7.2502495,149.72,149.67,6.19855425]
[1749233493137,41.0702495,149.72,149.67,6.19855425]
[1749233493437,33.82,149.72,149.7,6.6748]
[1749233493738,33.8651875,149.72,149.7,0.0424312]
[1749233494431,33.8651875,149.72,149.7,10.0424312]
[1749233494938,40.5392875,149.72,149.7,10.0424312]
[1749233495545,33.8651875,149.72,149.7,10.0424312]
[1749233495735,6.6744,149.71,149.7,10.0424312]
[1749233497439,47.789637,149.72,149.7,10.0424312]
[1749233498743,13.969637,149.72,149.7,10.0424312]
[1749233498939,33.82,149.71,149.7,10.0424312]
[1749233502146,40.4944,149.71,149.7,10.0424312]
[1749233504147,6.6761,149.68,149.64,6.6773]
[1749233504450,33.82,149.67,149.64,6.6773]
[1749233505148,33.82,149.67,149.65,6.677]
[1749233505149,33.86610722,149.67,149.65,6.677]
[1749233505747,33.86610722,149.67,149.66,6.6767]
[1749233517743,33.82,149.71,149.7,6.6746]
[1749233521453,33.82,149.71,149.69,0.04700371]
[1749233522256,33.82,149.71,149.69,16.72230371]
[1749233523562,33.82,149.71,149.69,10.04700371]
[1749233523764,41.0702495,149.71,149.69,10.04700371]
[1749233524257,6.6749,149.7,149.69,10.04700371]
[1749233529366,6.6746,149.71,149.69,10.04700371]
[1749233529561,33.82,149.7,149.69,10.04700371]
[1749233530066,33.82,149.7,149.69,16.72240371]
[1749233534775,33.82,149.7,149.69,10.04700371]
[1749233535275,33.82,149.7,149.69,16.72240371]
[1749233536377,33.82,149.7,149.69,10.04700371]
[1749233539580,33.82,149.7,149.69,16.72240371]
[1749233539976,0.04215464,149.72,149.69,10.04700371]
[1749233542281,6.6749,149.7,149.69,10.04700371]
[1749233543282,6.6747,149.71,149.69,10.04700371]
[1749233544874,40.4549,149.7,149.69,10.04700371]
[1749233546183,40.4549,149.7,149.69,9.95458539]
[1749233547389,40.4549,149.7,149.69,6.45818539]
[1749233547588,6.6754,149.69,149.68,0.04332408]
[1749233547787,13.9256495,149.69,149.68,0.04332408]
[1749233547989,6.6769,149.66,149.62,6.19855425]
[1749233548189,33.78,149.66,149.62,6.19855425]
[1749233548887,33.78,149.66,149.61,6.19855425]
[1749233549087,33.78,149.66,149.62,0.04861323]
[1749233549088,6.7226968,149.65,149.62,0.04861323]
[1749233549894,6.7226968,149.65,149.62,6.72691323]
[1749233550188,0.0452968,149.65,149.62,10.04861323]
[1749233550691,0.0452968,149.65,149.63,6.6778]
[1749233551591,6.7225968,149.65,149.62,22.92556748]
[1749233552092,7.2955463,149.65,149.62,16.24716748]
[1749233552296,7.2955463,149.65,149.62,10.04861323]
[1749233552587,13.9730463,149.65,149.62,10.04861323]
[1749233552792,13.9730463,149.65,149.62,16.72701323]
[1749233553891,6.6776,149.64,149.62,10.04861323]
[1749233554395,6.6776,149.64,149.62,16.72711323]
[1749233554795,6.6776,149.64,149.62,10.04861323]
[1749233555191,7.2955463,149.65,149.62,10.04861323]
[1749233555993,13.9730463,149.65,149.62,16.72701323]
[1749233556499,6.6778,149.64,149.62,10.04861323]
[1749233557192,13.9730463,149.65,149.62,10.04861323]
[1749233557593,13.9730463,149.65,149.62,16.72711323]
[1749233557994,6.6777,149.64,149.62,10.04861323]
[1749233558498,7.2955463,149.65,149.62,16.72691323]
[1749233558499,13.9729463,149.65,149.62,16.72691323]
[1749233562098,7.2502495,149.63,149.56,6.19855425]
[1749233562298,7.2502495,149.61,149.56,6.19855425]
[1749233562503,33.8,149.62,149.6,6.6793]
[1749233562704,33.8,149.62,149.59,7.2502495]
[1749233563103,33.84483524,149.62,149.6,6.6794]
[1749233563605,40.52343524,149.62,149.59,11.15148699]
[1749233564002,40.52343524,149.62,149.59,20.67044124]
[1749233564003,33.84483524,149.62,149.59,20.67044124]
[1749233564202,6.6794,149.6,149.59,14.47188699]
[1749233564811,6.6792,149.61,149.59,10.04598699]
[1749233565914,6.6794,149.6,149.59,10.04598699]
[1749233567606,41.09508474,149.62,149.59,10.04598699]
[1749233568214,6.6791,149.61,149.59,10.04598699]
[1749233568912,6.6794,149.6,149.59,10.04598699]
[1749233569416,13.9296495,149.6,149.59,10.04598699]
[1749233570013,6.6794,149.6,149.59,10.04598699]
[1749233570215,6.6791,149.61,149.59,10.04598699]
[1749233570715,33.84483524,149.62,149.59,10.04598699]
[1749233570908,33.84483524,149.62,149.59,17.29623649]
[1749233571113,30.34763524,149.62,149.61,6.6789]
[1749233571313,0.04483524,149.62,149.61,6.6789]
[1749233575717,0.04483524,149.62,149.61,13.9291495]
[1749233577419,33.8,149.65,149.64,6.6776]
[1749233577617,33.8,149.65,149.62,4.419]
[1749233578316,33.85074244,149.65,149.62,4.46567811]
[1749233578616,40.52814244,149.65,149.63,6.6778]
[1749233579015,33.85074244,149.65,149.62,4.46567811]
[1749233579522,33.85074244,149.65,149.63,6.678]
[1749233579723,33.85074244,149.65,149.62,4.46567811]
[1749233580119,33.85074244,149.65,149.64,6.6776]
[1749233580419,0.05074244,149.65,149.64,6.6776]
[1749233580617,40.4361,149.68,149.66,6.6767]
[1749233581219,33.76,149.68,149.67,6.6763]
[1749233582127,33.76,149.68,149.67,16.6763]
[1749233582524,33.76,149.71,149.67,17.2502495]
[1749233582723,33.76,149.71,149.69,7.2502495]
[1749233583122,33.76,149.71,149.7,6.6749]
[1749233583426,33.76,149.74,149.69,7.2502495]
[1749233583629,0.04288248,149.73,149.71,6.6741]
[1749233583830,0.04288248,149.73,149.7,0.05068394]
[1749233584122,0.04288248,149.73,149.71,6.6742]
[1749233584315,0.04288248,149.73,149.7,0.05068394]
[1749233585222,0.04288248,149.73,149.72,6.674]
[1749233594235,0.04288248,149.73,149.71,7.2502495]
[1749233594236,33.76,149.77,149.71,7.2502495]
[1749233594531,33.76,149.77,149.73,7.2502495]
[1749233594732,33.76,149.77,149.75,6.6724]
[1749233594933,40.4321,149.77,149.73,7.2502495]
[1749233595134,40.4321,149.77,149.74,0.04251902]
[1749233595330,33.76,149.77,149.75,6.6724]
[1749233595525,33.76,149.77,149.75,7.2502495]
[1749233595732,33.76,149.8,149.75,7.2502495]
[1749233596038,33.76,149.8,149.76,0.05023227]
[1749233596828,6.6712,149.79,149.76,0.05023227]
[1749233597231,6.6712,149.79,149.76,16.72223227]
[1749233598131,6.6714,149.78,149.76,16.72223227]
[1749233598629,33.76,149.8,149.77,6.6717]
[1749233599037,40.4307,149.8,149.77,6.6717]
[1749233599240,33.76,149.8,149.76,10.05023227]
[1749233599440,41.0102495,149.8,149.76,10.05023227]
[1749233599946,7.2502495,149.78,149.76,10.05023227]
[1749233600137,6.6718,149.77,149.76,10.05023227]
[1749233602340,7.2502495,149.79,149.76,10.05023227]
[1749233603542,6.6714,149.78,149.76,10.05023227]
[1749233605141,6.6718,149.77,149.76,10.05023227]
[1749233605650,6.6715,149.78,149.76,10.05023227]
[1749233608451,6.6718,149.77,149.76,10.05023227]
[1749233610151,6.6716,149.78,149.76,10.05023227]
[1749233610446,33.76,149.8,149.76,10.05023227]
[1749233611045,40.4306,149.8,149.76,10.05023227]
[1749233611348,33.76,149.8,149.76,10.05023227]
[1749233611646,33.76,149.8,149.78,6.6712]
[1749233611848,33.76,149.8,149.76,10.05023227]
[1749233612545,33.76,149.8,149.76,17.30048177]
[1749233612753,33.76,149.8,149.78,6.6711]
[1749233613745,40.4307,149.8,149.77,6.6716]
[1749233613950,33.76,149.8,149.77,6.6716]
[1749233614141,33.76,149.8,149.76,17.30048177]
[1749233614346,40.4307,149.8,149.77,6.6715]
[1749233616055,33.76,149.8,149.76,23.97248177]
[1749233616351,33.76,149.8,149.76,10.05023227]
[1749233616849,33.76,149.8,149.77,6.6717]
[1749233617550,33.76,149.8,149.76,16.72233227]
[1749233617853,6.6711,149.79,149.76,16.72233227]
[1749233618455,6.6711,149.79,149.77,6.6718]
[1749233619547,33.76,149.8,149.77,6.6718]
[1749233619754,11.69746534,149.79,149.76,10.05023227]
[1749233619958,13.9220495,149.77,149.76,10.05023227]
[1749233620551,18.36934525,149.77,149.76,10.05023227]
[1749233620746,13.9220495,149.77,149.76,10.00539703]
[1749233621451,18.36939974,149.77,149.76,10.00539703]
[1749233621861,13.9220495,149.77,149.76,10.00539703]
[1749233622265,18.36934609,149.77,149.76,10.00539703]
[1749233622662,18.36936301,149.77,149.76,6.51359703]
[1749233623357,6.6734,149.74,149.71,6.6742]
[1749233623559,41.01832433,149.74,149.71,0.04384775]
[1749233623759,4.44676011,149.73,149.71,0.04384775]
[1749233624058,7.2502495,149.72,149.71,0.04384775]
[1749233624562,11.70511433,149.72,149.71,0.04384775]
[1749233624761,7.2502495,149.72,149.71,0.04384775]
[1749233624957,11.70511433,149.72,149.71,0.04384775]
[1749233625159,13.9242495,149.72,149.71,0.04384775]
[1749233625362,18.3783225,149.72,149.71,10.04384775]
[1749233626261,13.9242495,149.72,149.71,10.04384775]
[1749233626564,18.37831902,149.72,149.71,10.04384775]
[1749233626762,11.70431902,149.72,149.71,10.04384775]
[1749233626961,7.2502495,149.72,149.71,10.04384775]
[1749233627759,11.66965477,149.72,149.71,10.04384775]
[1749233627962,11.66966747,149.72,149.71,10.04384775]
[1749233628166,7.2502495,149.72,149.71,10.04384775]
[1749233628368,41.01832433,149.74,149.71,10.04384775]
[1749233628865,47.69182433,149.74,149.71,10.04384775]
[1749233630169,47.69182433,149.74,149.72,6.674]
[1749233630170,33.72,149.73,149.72,6.674]
[1749233630370,33.72,149.73,149.71,10.04384775]
[1749233631657,33.72,149.73,149.71,16.71804775]
[1749233633364,40.3936,149.73,149.71,10.04384775]
[1749233633762,33.72,149.73,149.71,10.04384775]
[1749233634370,40.3936,149.73,149.71,10.04384775]
[1749233634866,33.72,149.73,149.71,10.04384775]
[1749233635165,33.72,149.73,149.72,6.674]
[1749233637070,33.72,149.73,149.71,16.71814775]
[1749233639473,33.72,149.73,149.72,6.674]
[1749233640571,0.04807483,149.74,149.73,6.6736]
[1749233640767,4.46358422,149.74,149.73,6.6736]
[1749233640960,0.04807483,149.74,149.73,6.6736]
[1749233641160,0.04807483,149.74,149.72,6.6737]
[1749233641572,4.46466302,149.74,149.72,6.6737]
[1749233641772,4.46466301,149.74,149.72,6.6737]
[1749233642167,4.46466301,149.74,149.72,16.6737]
[1749233642870,0.04807483,149.74,149.72,16.6737]
[1749233643069,6.72127483,149.74,149.72,16.6737]
[1749233643465,11.13801568,149.74,149.72,16.6737]
[1749233643670,4.46481568,149.74,149.72,16.6737]
[1749233643870,4.46481568,149.74,149.73,6.6736]
[1749233644674,4.46515996,149.74,149.73,6.6736]
[1749233644863,0.04807483,149.74,149.73,6.6736]
[1749233645063,4.4653116,149.74,149.73,6.6736]
[1749233645271,4.46530072,149.74,149.73,6.6736]
[1749233645464,4.46530208,149.74,149.73,6.6736]
[1749233645670,4.46530208,149.74,149.72,16.6738]
[1749233645867,4.46530208,149.74,149.72,10.0]
[1749233646071,4.41722725,149.73,149.72,10.0]
[1749233646680,11.09142338,149.73,149.72,10.0]
[1749233646874,11.09075755,149.73,149.72,10.0]
[1749233647981,6.6736,149.73,149.72,10.0]
[1749233648179,11.09604199,149.73,149.72,10.0]
[1749233648779,4.42244199,149.73,149.72,10.0]
[1749233649675,4.42274494,149.73,149.72,16.6737]
[1749233649975,4.42275933,149.73,149.72,16.6737]
[1749233650682,4.42308737,149.73,149.72,10.0]
[1749233651075,0.04807483,149.74,149.72,10.0]
[1749233651275,4.4231412,149.73,149.72,10.0]
[1749233651469,4.42324499,149.73,149.72,10.0]
[1749233651977,4.47131982,149.74,149.73,6.6736]
[1749233652681,4.46590037,149.74,149.73,6.6736]
[1749233653084,0.04807483,149.74,149.73,6.6736]
[1749233657087,0.04807483,149.74,149.73,16.6736]
[1749233659492,6.72117483,149.74,149.73,10.0]
[1749233659885,0.04807483,149.74,149.73,10.0]
[1749233660887,0.04807483,149.74,149.73,16.6736]
[1749233661386,0.04807483,149.74,149.73,10.0]
[1749233665589,6.72117483,149.74,149.73,10.0]
[1749233665797,0.04807483,149.74,149.73,10.0]
[1749233666707,0.04807483,149.74,149.73,16.6736]
[1749233667593,0.04807483,149.74,149.73,10.0]
[1749233668504,0.04807483,149.74,149.73,16.6736]
[1749233668700,0.04807483,149.74,149.73,10.0]
[1749233669405,6.72117483,149.74,149.73,10.0]
[1749233670698,0.04807483,149.74,149.73,10.0]
[1749233671507,6.72117483,149.74,149.73,10.0]
[1749233672001,0.04807483,149.74,149.73,10.0]
[1749233673506,6.72117483,149.74,149.73,10.0]
[1749233678507,0.04807483,149.74,149.73,10.0]
[1749233679205,0.04807483,149.74,149.73,16.6736]
[1749233679405,0.04807483,149.74,149.73,10.0]
[1749233680007,0.04807483,149.74,149.73,16.6736]
[1749233683620,0.04807483,149.74,149.73,10.0]
[1749233684811,0.04807483,149.74,149.73,16.6736]
[1749233686922,4.47879472,149.74,149.73,16.6736]
[1749233688116,0.04807483,149.74,149.73,16.6736]
[1749233688317,0.04807483,149.74,149.73,10.0]
[1749233688318,11.15145645,149.74,149.73,10.0]
[1749233688519,0.04807483,149.74,149.73,10.0]
[1749233689322,0.04807483,149.74,149.73,16.6736]
[1749233693021,4.61696835,149.74,149.73,16.6736]
[1749233694526,4.61851307,149.74,149.73,16.6736]
[1749233696225,4.61845021,149.74,149.73,16.6736]
[1749233696427,4.61845013,149.74,149.73,16.6736]
[1749233698123,4.61872071,149.74,149.73,16.6736]
[1749233699129,4.6183289,149.74,149.73,16.6736]
[1749233699435,4.61820273,149.74,149.73,16.6736]
[1749233699626,4.6182252,149.74,149.73,16.6736]
[1749233700225,4.61810995,149.74,149.73,16.6736]
[1749233700427,11.29132119,149.74,149.73,10.0]
[1749233700628,11.29133495,149.74,149.73,10.0]
[1749233700824,11.2913133,149.74,149.73,10.0]
[1749233701021,11.29133858,149.74,149.73,10.0]
[1749233701227,15.93443871,149.74,149.73,10.0]
[1749233701621,11.36438338,149.74,149.73,10.0]
[1749233701828,15.93444188,149.74,149.73,10.0]
[1749233702029,15.93447025,149.74,149.73,10.0]
[1749233702329,15.93448149,149.74,149.73,10.0]
[1749233702528,11.36438338,149.74,149.73,10.0]
[1749233702930,15.93448149,149.74,149.73,10.0]
[1749233703833,15.93107336,149.74,149.73,10.0]
[1749233704327,11.36438338,149.74,149.73,10.0]
[1749233704531,15.93107336,149.74,149.73,10.0]
[1749233704833,11.36438338,149.74,149.73,10.0]
[1749233705034,15.93081354,149.74,149.73,10.0]
[1749233705336,15.93078544,149.74,149.73,10.0]
[1749233705729,15.9307865,149.74,149.73,10.0]
[1749233705928,11.36438338,149.74,149.73,10.0]
[1749233706130,15.93079292,149.74,149.73,10.0]
[1749233706734,15.93082441,149.74,149.73,10.0]
[1749233706938,15.93271699,149.74,149.73,10.0]
[1749233707333,11.36438338,149.74,149.73,10.0]
[1749233707525,15.92189271,149.74,149.73,10.0]
[1749233707832,15.92188697,149.74,149.73,10.0]
[1749233709032,11.36438338,149.74,149.73,10.0]
[1749233709232,15.91835756,149.74,149.73,10.0]
[1749233709535,15.91839201,149.74,149.73,10.0]
[1749233709735,15.91839406,149.74,149.73,10.0]
[1749233710938,15.91860485,149.74,149.73,10.0]
[1749233712333,4.6022963,149.74,149.73,16.6736]
[1749233712541,33.7,149.75,149.73,14.64310855]
[1749233712730,33.64,149.78,149.74,4.64310855]
[1749233712930,33.64,149.78,149.77,4.64310855]
[1749233713439,33.64,149.78,149.77,11.31500855]
[1749233714141,33.64,149.78,149.77,4.64310855]
[1749233714340,33.64,149.78,149.77,14.64310855]
[1749233714840,40.3114,149.78,149.77,14.64310855]
[1749233715432,33.64,149.78,149.77,14.64310855]
[1749233715637,33.64,149.78,149.77,10.0]
[1749233716141,40.3114,149.78,149.77,10.0]
[1749233717142,47.56025417,149.78,149.77,10.0]
[1749233717539,6.6719,149.77,149.76,0.05017434]
[1749233717743,40.88885417,149.78,149.7,6.23901117]
[1749233718045,6.6739,149.73,149.7,6.675]
[1749233718342,40.2939,149.73,149.7,6.675]
[1749233718840,40.33826099,149.73,149.7,6.72217093]
[1749233719038,33.66436099,149.73,149.7,6.72217093]
[1749233719243,33.66436099,149.73,149.71,6.6745]
[1749233719635,33.66436099,149.73,149.7,10.04717093]
[1749233720041,33.66436099,149.73,149.71,6.6743]
[1749233720238,33.66436099,149.73,149.7,10.04717093]
[1749233720948,33.66436099,149.73,149.72,6.6741]
[1749233721846,33.66436099,149.73,149.71,6.6743]
[1749233722443,33.66436099,149.73,149.71,6.6745]
[1749233724848,4.49643426,149.72,149.71,6.6745]
[1749233725947,4.49632435,149.72,149.71,6.6745]
[1749233726246,4.49630694,149.72,149.71,6.6745]
[1749233727950,4.49633761,149.72,149.71,6.6745]
[1749233728646,33.66436099,149.73,149.72,6.6741]
[1749233728948,4.54065984,149.73,149.72,13.92295417]
[1749233729845,33.64,149.76,149.75,6.6728]
[1749233730050,33.6,149.77,149.75,6.6728]
[1749233730551,33.6,149.8,149.76,7.24885417]
[1749233730741,33.6,149.8,149.77,0.04735228]
[1749233730946,33.6,149.8,149.79,6.671]
[1749233731948,33.6,149.8,149.77,0.04735228]
[1749233732150,33.6,149.8,149.79,10.0]
[1749233732851,40.2705,149.8,149.79,10.0]
[1749233733350,33.6,149.8,149.79,10.0]
[1749233734846,33.6,149.8,149.79,16.671]
[1749233735357,33.6,149.8,149.79,10.0]
[1749233737145,33.6,149.8,149.79,16.671]
[1749233737355,33.6,149.8,149.79,10.0]
[1749233739259,33.6,149.8,149.79,16.671]
[1749233739458,33.6,149.8,149.79,10.0]
[1749233741858,38.0424136,149.8,149.79,16.671]
[1749233742056,33.6,149.8,149.79,16.671]
[1749233742249,33.58,149.83,149.79,10.0]
[1749233742453,4.44600466,149.82,149.8,0.04869733]
[1749233742657,4.44600466,149.81,149.8,0.04869733]
[1749233742858,4.44600466,149.82,149.8,6.71889733]
[1749233743059,4.44599947,149.82,149.8,6.71889733]
[1749233744258,11.11579947,149.82,149.8,6.71889733]
[1749233744756,11.11330184,149.82,149.8,6.71889733]
[1749233744962,6.6698,149.82,149.8,0.04869733]
[1749233745162,11.11330184,149.82,149.8,0.04869733]
[1749233747057,11.11330184,149.82,149.8,10.04869733]
[1749233747561,11.11330184,149.82,149.8,16.71909733]
[1749233747762,4.44350184,149.82,149.8,16.71909733]
[1749233748256,11.11310184,149.82,149.8,16.71909733]
[1749233749562,6.6696,149.82,149.8,16.71909733]
[1749233749862,11.1372443,149.82,149.8,16.71909733]
[1749233750463,4.4676443,149.82,149.81,6.6701]
[1749233751363,33.58,149.83,149.82,6.6696]
[1749233751562,38.04713182,149.83,149.82,6.6696]
[1749233751967,38.04735953,149.83,149.81,6.6699]
[1749233752163,4.46735953,149.82,149.81,6.6699]
[1749233752464,33.58,149.83,149.81,6.6699]
[1749233752963,33.58,149.83,149.82,6.6696]
[1749233753163,38.04735826,149.83,149.82,6.6696]
[1749233753365,38.04735826,149.83,149.8,17.2975515]
[1749233753561,33.58,149.83,149.81,6.6698]
[1749233754866,33.58,149.83,149.82,6.6696]
[1749233755164,38.04731621,149.83,149.82,6.6696]
[1749233756163,33.58,149.83,149.82,6.6696]
[1749233756369,10.71948462,149.91,149.82,7.24885417]
[1749233756568,11.13359971,149.9,149.86,7.24885417]
[1749233756762,6.6663,149.9,149.87,0.05033854]
[1749233757269,11.13319971,149.91,149.87,0.05033854]
[1749233757464,11.13319971,149.91,149.88,6.6667]
[1749233757664,11.13319971,149.91,149.87,0.05033854]
[1749233757864,11.14047781,149.91,149.87,0.05033854]
[1749233758469,11.14047781,149.91,149.89,6.6665]
[1749233759068,4.47457781,149.91,149.9,6.6661]
[1749233759664,33.58,149.92,149.9,6.6661]
[1749233759871,4.47229386,149.91,149.9,6.70983974]
[1749233760265,33.58,149.92,149.9,6.70983974]
[1749233761569,33.58,149.92,149.91,6.6656]
[1749233762470,33.58,149.92,149.91,16.6656]